bitfinex/quotes_SOLUSD_20240814
["timestamp","ask_amount","ask_price","bid_price","bid_amount"]
[1723638297106,6.7133,148.96,148.89,20.0]
[1723638297400,6.7133,148.96,148.84,19.23999661]
[1723638297401,23.2056,148.97,148.88,12.13]
[1723638297696,16.4927,148.97,148.89,20.0]
[1723638297903,16.4927,148.97,148.92,12.13]
[1723638298785,16.4927,148.97,148.89,32.13]
[1723638298786,0.8445855,148.98,148.96,12.13]
[1723638299611,0.8445855,148.98,148.96,10.63]
[1723638299787,0.8445855,148.98,148.96,12.13]
[1723638300098,0.8445855,148.98,148.97,12.13]
[1723638300308,0.8445855,148.98,148.93,45.0]
[1723638300309,0.8445855,148.98,148.91,2.90412236]
[1723638300509,0.8445855,148.98,148.96,12.13]
[1723638306010,0.8445855,148.98,148.95,12.13]
[1723638308877,0.8445855,148.98,148.86,34.36021832]
[1723638309078,0.8445855,148.98,148.92,12.13]
[1723638310102,0.8445855,148.98,148.94,12.13]
[1723638311211,0.8445855,148.98,148.96,12.13]
[1723638313203,0.8445855,148.98,148.96,10.63]
[1723638314918,0.8445855,148.98,148.97,12.13]
[1723638315093,0.8445855,148.98,148.95,12.13]
[1723638316790,0.8445855,148.98,148.97,12.13]
[1723638319339,0.8445855,148.98,148.95,12.13]
[1723638320318,0.8445855,148.98,148.92,12.13]
[1723638320518,0.8445855,148.98,148.94,12.13]
[1723638323430,0.8445855,148.98,148.87,6.76824221]
[1723638323627,0.8445855,148.98,148.95,12.13]
[1723638323800,0.8445855,148.98,148.97,12.13]
[1723638324195,0.8445855,148.98,148.91,15.6605]
[1723638324411,0.8445855,148.98,148.97,12.13]
[1723638325607,0.8445855,148.98,148.96,12.13]
[1723638326413,0.8445855,148.98,148.96,60.65]
[1723638326608,0.8445855,148.98,148.96,12.13]
[1723638328441,0.8445855,148.98,148.96,60.65]
[1723638329345,0.8445855,148.98,148.96,24.26]
[1723638329565,0.8445855,148.98,148.96,60.65]
[1723638329853,0.8445855,148.98,148.96,12.13]
[1723638333128,0.8445855,148.98,148.92,6.76824221]
[1723638333327,0.8445855,148.98,148.95,12.13]
[1723638334040,0.8445855,148.98,148.92,6.76824221]
[1723638334245,0.8445855,148.98,148.96,12.13]
[1723638334837,0.8445855,148.98,148.92,6.76824221]
[1723638335086,0.8445855,148.98,148.94,12.13]
[1723638336845,0.8445855,148.98,148.92,18.89824221]
[1723638337048,45.8445855,148.98,148.92,12.13]
[1723638337657,45.8445855,148.98,148.94,12.13]
[1723638338036,0.8445855,148.98,148.94,12.13]
[1723638338366,0.8445855,148.98,148.96,12.13]
[1723638339030,0.8445855,148.98,148.92,8.55296683]
[1723638339255,0.8445855,148.98,148.97,12.13]
[1723638339842,0.8445855,148.98,148.93,20.0]
[1723638340033,0.8445855,148.98,148.96,30.3]
[1723638341351,0.8445855,148.98,148.94,30.3]
[1723638343641,22.8949,149.03,148.94,30.3]
[1723638343642,0.12549,149.02,148.94,30.3]
[1723638343962,45.50196,149.02,148.94,30.3]
[1723638345540,45.37647,149.02,148.94,30.3]
[1723638347468,45.25098,149.02,148.96,30.3]
[1723638347765,17.5394855,149.03,148.98,30.3]
[1723638347766,16.5638,149.03,148.98,30.3]
[1723638348861,7.01663918,149.07,149.0,30.3]
[1723638349045,6.7083,149.07,149.0,30.3]
[1723638350265,45.0,149.06,149.0,30.3]
[1723638351174,0.12549,149.05,148.99,21.3749]
[1723638351466,45.0,149.06,148.99,21.3749]
[1723638351666,45.0,149.06,149.0,30.3]
[1723638351869,45.25098,149.07,149.0,30.3]
[1723638352344,45.0,149.07,149.0,30.3]
[1723638352550,51.93084177,149.08,149.0,30.3]
[1723638352755,0.25098,149.07,149.0,30.3]
[1723638354349,0.25098,149.07,149.02,30.3]
[1723638354350,0.12549,149.07,149.02,30.3]
[1723638354549,45.34833177,149.08,149.02,30.3]
[1723638355270,0.09735177,149.08,149.02,30.3]
[1723638360578,0.09735177,149.08,149.0,30.3]
[1723638360750,45.47382177,149.08,149.0,30.3]
[1723638361289,0.34833177,149.08,149.0,30.3]
[1723638361464,0.12549,149.07,148.99,21.3749]
[1723638361770,45.25098,149.07,149.0,20.0]
[1723638361979,45.25098,149.07,149.0,32.11]
[1723638363259,45.22284177,149.08,149.0,32.11]
[1723638363790,0.22284177,149.08,149.0,32.11]
[1723638363962,0.09735177,149.08,149.02,12.11]
[1723638364352,0.09735177,149.08,149.04,12.11]
[1723638367264,0.09735177,149.08,149.02,12.11]
[1723638367501,0.09735177,149.08,149.03,20.0]
[1723638368267,0.09735177,149.08,149.02,20.0]
[1723638371295,0.09735177,149.08,149.0,20.0]
[1723638372573,0.09735177,149.08,149.01,30.27]
[1723638372773,0.09735177,149.08,149.02,20.0]
[1723638374596,0.09735177,149.08,149.03,45.0]
[1723638375782,0.09735177,149.08,149.02,20.0]
[1723638378211,0.09735177,149.08,149.01,0.12549]
[1723638378391,0.09735177,149.08,149.01,45.12549]
[1723638378602,0.09735177,149.08,149.02,20.0]
[1723638385830,0.09735177,149.08,149.03,45.0]
[1723638387239,0.09735177,149.08,149.04,0.12549]
[1723638387419,0.09735177,149.08,149.04,0.37647]
[1723638387738,0.09735177,149.08,149.04,20.37647]
[1723638387913,0.09735177,149.08,149.05,12.11]
[1723638391535,0.09735177,149.08,149.06,1.34002378]
[1723638391750,0.09735177,149.08,149.06,45.0]
[1723638392053,0.09735177,149.08,149.05,12.11]
[1723638395657,0.09735177,149.08,149.06,0.12549]
[1723638395850,0.09735177,149.08,149.06,45.12549]
[1723638396165,0.09735177,149.08,149.07,12.11]
[1723638396344,0.09735177,149.08,149.07,57.11]
[1723638396855,0.09735177,149.08,149.07,57.61196]
[1723638397574,0.09735177,149.08,149.07,57.11]
[1723638399861,0.09735177,149.08,149.07,45.0]
[1723638400049,0.09735177,149.08,149.06,45.0]
[1723638400743,0.09735177,149.08,149.05,12.11]
[1723638400971,0.09735177,149.08,149.06,20.0]
[1723638404176,0.09735177,149.08,149.05,12.11]
[1723638405169,0.09735177,149.08,149.07,12.23549]
[1723638405379,0.8445855,149.13,149.07,77.61196]
[1723638405564,0.8445855,149.13,149.11,12.11]
[1723638406273,0.8445855,149.13,149.1,12.11]
[1723638408375,0.8445855,149.13,149.08,12.11]
[1723638410370,0.8445855,149.13,149.1,12.11]
[1723638411190,0.8445855,149.13,149.08,12.11]
[1723638411368,0.8445855,149.13,149.09,45.0]
[1723638416463,0.8445855,149.13,149.1,0.12549]
[1723638417194,0.8445855,149.13,149.09,45.0]
[1723638417568,0.8445855,149.13,149.1,0.12549]
[1723638417770,0.8445855,149.13,149.1,0.37647]
[1723638419287,0.8445855,149.13,149.1,0.12549]
[1723638419703,0.8445855,149.13,149.09,45.0]
[1723638419997,0.8445855,149.13,149.06,6.3981]
[1723638420173,0.8445855,149.13,149.07,20.0]
[1723638420377,0.8445855,149.13,149.08,12.11]
[1723638425304,0.8445855,149.13,149.07,20.0]
[1723638429609,0.8445855,149.13,149.05,27.1369]
[1723638430895,0.8445855,149.13,149.06,20.0]
[1723638431711,0.8445855,149.13,149.07,0.12549]
[1723638431910,0.8445855,149.13,149.07,57.61196]
[1723638432085,0.8445855,149.13,149.07,57.23549]
[1723638432290,0.8445855,149.13,149.07,57.11]
[1723638432687,0.8445855,149.13,149.08,0.12549]
[1723638433113,0.8445855,149.13,149.07,57.11]
[1723638434316,0.8445855,149.13,149.07,45.0]
[1723638434495,0.8445855,149.13,149.07,57.11]
[1723638434694,0.8445855,149.13,149.08,0.37647]
[1723638435200,0.8445855,149.13,149.07,45.0]
[1723638435908,0.8445855,149.13,149.08,0.12549]
[1723638436107,0.8445855,149.13,149.07,45.0]
[1723638437018,0.8445855,149.13,149.08,0.12549]
[1723638437203,0.8445855,149.13,149.08,0.50196]
[1723638438311,0.8445855,149.13,149.09,12.11]
[1723638438503,0.8445855,149.13,149.1,45.0]
[1723638439135,0.8445855,149.13,149.08,0.12549]
[1723638439413,0.8445855,149.13,149.08,65.25098]
[1723638440922,0.8445855,149.13,149.09,12.23549]
[1723638441243,0.8445855,149.13,149.1,45.25098]
[1723638441394,0.8445855,149.13,149.1,45.12549]
[1723638446509,0.8445855,149.13,149.1,45.0]
[1723638447728,0.8445855,149.13,149.09,12.11]
[1723638449221,0.8445855,149.13,149.08,32.11]
[1723638449402,0.8445855,149.13,149.09,45.0]
[1723638450428,0.8445855,149.13,149.08,20.0]
[1723638452609,0.8445855,149.13,149.09,57.11]
[1723638456744,0.8445855,149.13,149.09,12.11]
[1723638458116,0.8445855,149.13,149.1,45.0]
[1723638458315,0.8445855,149.13,149.09,12.11]
[1723638464656,0.8445855,149.13,149.05,15.0269]
[1723638464831,0.8445855,149.13,149.09,12.11]
[1723638465540,0.8445855,149.13,149.07,12.11]
[1723638465741,0.8445855,149.13,149.08,65.0]
[1723638467459,0.8445855,149.13,149.09,12.23549]
[1723638467756,0.8445855,149.13,149.11,12.11]
[1723638468976,0.8445855,149.13,149.1,45.0]
[1723638469135,0.8445855,149.13,149.1,12.11]
[1723638471265,0.8445855,149.13,149.09,45.0]
[1723638472445,0.8445855,149.13,149.08,32.11]
[1723638474070,0.8445855,149.13,149.08,20.0]
[1723638474250,0.8445855,149.13,149.06,0.25098]
[1723638474455,0.8445855,149.13,149.07,0.12549]
[1723638474673,0.8445855,149.13,149.07,20.12549]
[1723638474972,0.8445855,149.13,149.08,45.0]
[1723638476569,0.8445855,149.13,149.07,20.0]
[1723638476775,0.8445855,149.13,149.08,45.0]
[1723638477765,0.8445855,149.13,149.09,20.0]
[1723638477942,0.8445855,149.13,149.1,45.0]
[1723638478278,0.8445855,149.13,149.11,20.0]
[1723638479256,0.8445855,149.13,149.06,16.74637]
[1723638479453,0.8445855,149.13,149.07,0.12549]
[1723638479774,0.8445855,149.13,149.07,45.25098]
[1723638479973,0.8445855,149.13,149.08,20.0]
[1723638480148,0.8445855,149.13,149.09,45.0]
[1723638485064,0.8445855,149.13,149.08,20.0]
[1723638485280,0.8445855,149.13,149.05,2.63114901]
[1723638485281,15.1174,149.12,149.05,2.63114901]
[1723638485452,0.12549,149.11,149.0,6.2475]
[1723638485652,6.7081,149.08,148.96,13.30245855]
[1723638485874,0.25098,149.07,148.96,7.01135855]
[1723638486079,6.7089,149.06,148.94,16.4308]
[1723638486385,0.12549,149.05,148.94,16.4308]
[1723638486567,0.37647,149.07,148.92,6.2911]
[1723638486760,0.37647,149.07,148.92,8.92127327]
[1723638487280,6.2316,149.09,148.92,8.92127327]
[1723638487458,0.25098,149.08,148.92,23.39937204]
[1723638487663,0.25098,149.07,148.92,15.33616181]
[1723638487851,6.95928,149.07,148.92,15.33616181]
[1723638488055,0.25098,149.06,148.92,15.33616181]
[1723638489287,0.25098,149.06,148.93,20.0]
[1723638489859,0.12549,149.03,148.9,7.01619808]
[1723638490066,7.08677,149.03,148.87,6.41488854]
[1723638490286,0.12549,149.01,148.87,14.60281364]
[1723638490459,0.25098,149.01,148.87,13.43298504]
[1723638490660,0.12549,149.0,148.87,6.41488854]
[1723638490953,0.25098,149.0,148.87,6.41488854]
[1723638491158,0.12549,148.99,148.87,6.41488854]
[1723638491390,0.12549,148.99,148.86,7.01855574]
[1723638491559,0.25098,148.99,148.86,7.01855574]
[1723638491890,7.01747749,149.05,148.89,40.0]
[1723638492066,13.74650549,149.12,148.9,16.023873]
[1723638492067,6.7064,149.11,148.9,16.023873]
[1723638492266,7.01509515,149.09,148.9,15.023873]
[1723638492481,7.01509515,149.09,148.93,65.79]
[1723638492657,259.7445855,149.13,148.94,28.76823836]
[1723638492860,7.01499024,149.1,148.94,28.76823836]
[1723638493058,6.7064,149.11,148.95,0.12549]
[1723638493279,6.7064,149.11,148.97,0.12549]
[1723638493483,6.7064,149.11,148.97,65.50196]
[1723638493484,7.01519175,149.1,148.97,65.50196]
[1723638493964,7.01519175,149.1,149.02,30.27]
[1723638494461,45.12549,149.09,149.02,30.27]
[1723638494659,0.25098,149.08,149.02,30.27]
[1723638495908,0.25098,149.08,148.97,65.50196]
[1723638496588,0.12549,149.08,148.97,65.50196]
[1723638496781,0.12549,149.09,148.97,74.27019836]
[1723638496782,0.25098,149.09,148.97,74.27019836]
[1723638497304,0.8445855,149.13,148.99,0.12549]
[1723638497463,0.8445855,149.13,148.99,54.27019836]
[1723638497662,7.01287079,149.12,149.0,20.0]
[1723638497873,7.01287079,149.12,149.01,45.12549]
[1723638498171,7.01287079,149.12,149.02,20.0]
[1723638498701,0.37647,149.11,149.02,20.0]
[1723638499065,7.01287079,149.12,149.03,45.0]
[1723638499872,7.01287079,149.12,149.02,20.0]
[1723638500079,7.01287079,149.12,149.01,0.12549]
[1723638500282,0.12549,149.11,149.01,45.0]
[1723638500595,0.25098,149.11,149.01,45.0]
[1723638500790,0.25098,149.1,149.02,20.0]
[1723638502179,0.8445855,149.13,149.02,20.0]
[1723638502382,0.8445855,149.13,149.03,45.0]
[1723638502679,0.8445855,149.13,149.05,0.12549]
[1723638502893,0.8445855,149.13,149.05,45.25098]
[1723638503083,0.8445855,149.13,149.05,45.0]
[1723638503288,0.8445855,149.13,149.06,20.0]
[1723638505484,0.8445855,149.13,149.01,20.0]
[1723638505685,0.25098,149.12,149.01,20.0]
[1723638506684,0.25098,149.12,149.01,22.64355429]
[1723638506884,0.25098,149.12,149.02,0.12549]
[1723638507078,0.25098,149.12,149.02,0.25098]
[1723638507484,0.25098,149.12,149.02,45.25098]
[1723638507777,0.25098,149.12,149.03,20.0]
[1723638508789,0.8445855,149.13,149.04,45.0]
[1723638508985,0.8445855,149.13,149.05,20.0]
[1723638509307,0.8445855,149.13,149.06,45.0]
[1723638509807,0.8445855,149.13,149.07,20.37647]
[1723638510011,0.8445855,149.13,149.07,20.0]
[1723638511107,0.8445855,149.13,149.08,45.0]
[1723638511278,0.8445855,149.13,149.09,20.0]
[1723638511896,0.8445855,149.13,149.1,45.0]
[1723638513885,0.8445855,149.13,149.05,2.73757654]
[1723638513886,0.8445855,149.13,149.05,10.94699157]
[1723638514203,0.8445855,149.13,149.06,20.0]
[1723638514996,0.8445855,149.13,149.02,20.0]
[1723638515195,0.8445855,149.13,149.03,0.25098]
[1723638515394,0.8445855,149.13,149.04,0.12549]
[1723638515626,0.8445855,149.13,149.05,0.12549]
[1723638515827,0.8445855,149.13,149.05,45.37647]
[1723638516038,0.8445855,149.13,149.06,20.12549]
[1723638516322,0.8445855,149.13,149.06,20.0]
[1723638516819,0.8445855,149.13,149.02,20.0]
[1723638517431,0.8445855,149.13,149.02,67.54046058]
[1723638517622,0.8445855,149.13,149.03,53.04242058]
[1723638517827,0.8445855,149.13,149.05,0.12549]
[1723638517994,0.8445855,149.13,149.05,45.50196]
[1723638518199,0.8445855,149.13,149.07,0.12549]
[1723638518433,0.8445855,149.13,149.07,45.50196]
[1723638518712,0.8445855,149.13,149.02,2.74515812]
[1723638518908,0.8445855,149.13,149.01,65.85]
[1723638519126,0.8445855,149.13,149.01,85.85]
[1723638519425,0.8445855,149.13,149.01,73.39046058]
[1723638519731,0.8445855,149.13,149.02,20.0]
[1723638519931,0.8445855,149.13,149.04,0.12549]
[1723638520102,258.9,149.27,149.07,0.12549]
[1723638520307,7.0078862,149.25,149.07,46.84248317]
[1723638520525,7.0078862,149.25,149.09,0.12549]
[1723638520842,7.0078862,149.25,149.09,45.50196]
[1723638521124,7.0078862,149.25,149.1,20.0]
[1723638521827,7.0078862,149.25,149.07,60.0]
[1723638522002,382.5445855,149.28,149.07,60.0]
[1723638522519,382.5445855,149.28,149.09,0.12549]
[1723638522712,382.5445855,149.28,149.11,0.12549]
[1723638523025,389.55089532,149.28,149.11,45.50196]
[1723638523213,389.55089532,149.28,149.13,0.12549]
[1723638523399,7.85089532,149.28,149.13,45.37647]
[1723638523606,7.85089532,149.28,149.14,20.12549]
[1723638523816,7.85089532,149.28,149.15,45.37647]
[1723638524014,7.85089532,149.28,149.16,20.12549]
[1723638524211,7.85089532,149.28,149.17,0.25098]
[1723638524400,7.85089532,149.28,149.18,0.25098]
[1723638524601,7.85089532,149.28,149.18,20.25098]
[1723638524802,7.85089532,149.28,149.19,45.0]
[1723638525626,0.12549,149.27,149.19,45.0]
[1723638525806,0.12549,149.27,149.18,20.0]
[1723638525807,0.37647,149.27,149.18,20.0]
[1723638526012,0.37647,149.27,149.12,0.12549]
[1723638526205,0.25098,149.27,149.12,65.50196]
[1723638526412,0.12549,149.27,149.12,45.50196]
[1723638526632,0.12549,149.27,149.13,20.0]
[1723638526805,7.85089532,149.28,149.14,45.50196]
[1723638527125,7.85089532,149.28,149.14,45.25098]
[1723638527333,7.85089532,149.28,149.15,20.0]
[1723638527631,7.85089532,149.28,149.16,45.12549]
[1723638527838,7.85089532,149.28,149.17,20.0]
[1723638528131,0.25098,149.27,149.15,20.0]
[1723638528534,0.25098,149.27,149.11,2.73967426]
[1723638528705,0.25098,149.27,149.12,0.12549]
[1723638529419,0.12549,149.26,149.15,0.12549]
[1723638529602,0.12549,149.26,149.15,0.25098]
[1723638530042,0.8445855,149.28,149.16,0.12549]
[1723638530350,0.8445855,149.28,149.16,0.37647]
[1723638530537,0.8445855,149.28,149.17,0.12549]
[1723638534430,0.8445855,149.28,149.17,0.37647]
[1723638534747,0.8445855,149.28,149.18,0.12549]
[1723638534947,0.8445855,149.28,149.18,0.37647]
[1723638535361,0.8445855,149.28,149.18,0.12549]
[1723638535651,0.8445855,149.28,149.17,0.12549]
[1723638536018,0.25098,149.27,149.15,20.0]
[1723638536244,0.12549,149.25,149.13,20.0]
[1723638536450,0.25098,149.26,149.13,20.0]
[1723638536637,0.12549,149.26,149.13,20.0]
[1723638536945,0.25098,149.26,149.13,20.0]
[1723638537358,0.12549,149.27,149.13,20.0]
[1723638537659,0.25098,149.27,149.14,0.37647]
[1723638537855,0.12549,149.27,149.15,0.25098]
[1723638538058,0.9700755,149.28,149.16,0.25098]
[1723638538358,0.9700755,149.28,149.17,0.25098]
[1723638538568,0.9700755,149.28,149.18,0.12549]
[1723638538858,0.9700755,149.28,149.18,45.12549]
[1723638539241,0.9700755,149.28,149.19,20.0]
[1723638539445,0.9700755,149.28,149.2,45.0]
[1723638548953,0.8445855,149.28,149.21,0.12549]
[1723638549159,0.8445855,149.28,149.21,8.33708725]
[1723638549360,0.8445855,149.28,149.22,45.0]
[1723638549559,0.8445855,149.28,149.23,20.0]
[1723638551265,0.8445855,149.28,149.24,45.12549]
[1723638551652,0.8445855,149.28,149.24,44.62549]
[1723638552286,0.8445855,149.28,149.25,0.25098]
[1723638552687,0.8445855,149.28,149.25,20.0]
[1723638553984,0.8445855,149.28,149.18,20.12549]
[1723638554189,0.8445855,149.28,149.2,0.12549]
[1723638554369,0.8445855,149.28,149.2,20.0]
[1723638554569,0.8445855,149.28,149.18,7.83512725]
[1723638555479,0.8445855,149.28,149.18,10.48929762]
[1723638555858,0.8445855,149.28,149.12,20.0]
[1723638556063,0.8445855,149.28,149.12,30.56448839]
[1723638556286,0.8445855,149.28,149.13,10.56448839]
[1723638556469,0.8445855,149.28,149.13,20.09893269]
[1723638556989,0.8445855,149.28,149.13,27.49928216]
[1723638557188,0.8445855,149.28,149.13,47.49928216]
[1723638557391,0.8445855,149.28,149.14,0.12549]
[1723638557700,0.8445855,149.28,149.16,0.12549]
[1723638557877,0.8445855,149.28,149.16,31.06644839]
[1723638558073,0.8445855,149.28,149.18,0.12549]
[1723638558292,0.8445855,149.28,149.18,20.50196]
[1723638558466,0.8445855,149.28,149.2,0.12549]
[1723638558669,0.8445855,149.28,149.2,20.50196]
[1723638558874,0.8445855,149.28,149.22,0.12549]
[1723638559165,0.8445855,149.28,149.22,20.37647]
[1723638559370,0.8445855,149.28,149.23,45.0]
[1723638559788,0.8445855,149.28,149.12,20.0]
[1723638560281,0.8445855,149.28,149.12,26.93204934]
[1723638560476,0.8445855,149.28,149.13,16.80206008]
[1723638560677,0.8445855,149.28,149.14,7.40034947]
[1723638561003,0.8445855,149.28,149.15,0.12549]
[1723638561292,0.8445855,149.28,149.17,0.12549]
[1723638561509,0.8445855,149.28,149.18,7.40034947]
[1723638561675,0.8445855,149.28,149.19,20.50196]
[1723638561879,0.8445855,149.28,149.21,0.12549]
[1723638562082,0.8445855,149.28,149.21,20.50196]
[1723638562302,0.8445855,149.28,149.23,0.12549]
[1723638562601,0.8445855,149.28,149.23,20.50196]
[1723638562777,0.8445855,149.28,149.25,0.12549]
[1723638562982,0.8445855,149.28,149.25,20.37647]
[1723638563297,0.8445855,149.28,149.25,20.12549]
[1723638564189,0.8445855,149.28,149.26,45.25098]
[1723638564706,0.8445855,149.28,149.25,20.12549]
[1723638564911,0.8445855,149.28,149.22,20.0]
[1723638565810,0.8445855,149.28,149.19,2.60770079]
[1723638565991,0.8445855,149.28,149.16,16.70518252]
[1723638566795,0.8445855,149.28,149.16,19.3811227]
[1723638567378,0.8445855,149.28,149.17,45.12549]
[1723638567785,0.8445855,149.28,149.18,0.12549]
[1723638567983,0.8445855,149.28,149.18,0.25098]
[1723638568184,0.8445855,149.28,149.2,0.12549]
[1723638568408,0.8445855,149.28,149.2,0.25098]
[1723638568711,0.8445855,149.28,149.22,0.12549]
[1723638569010,0.8445855,149.28,149.22,0.25098]
[1723638569308,0.8445855,149.28,149.19,7.30347191]
[1723638569491,0.8445855,149.28,149.2,20.0]
[1723638570589,0.8445855,149.28,149.21,0.12549]
[1723638570811,0.8445855,149.28,149.21,0.25098]
[1723638571110,0.8445855,149.28,149.22,0.25098]
[1723638571294,0.8445855,149.28,149.22,20.25098]
[1723638571608,0.8445855,149.28,149.23,45.0]
[1723638572006,0.8445855,149.28,149.22,20.12549]
[1723638572186,0.8445855,149.28,149.23,20.0]
[1723638572604,0.8445855,149.28,149.22,0.12549]
[1723638573087,0.8445855,149.28,149.22,20.12549]
[1723638573994,0.8445855,149.28,149.23,0.12549]
[1723638574290,0.8445855,149.28,149.23,45.37647]
[1723638574502,0.8445855,149.28,149.24,20.12549]
[1723638574807,0.8445855,149.28,149.14,6.95012873]
[1723638575008,0.8445855,149.28,149.08,20.0]
[1723638575308,0.8445855,149.28,149.05,1.1679033]
[1723638575309,0.8445855,149.28,149.11,6.95999081]
[1723638575494,0.8445855,149.28,149.11,7.18223362]
[1723638575697,0.37647,149.27,149.11,7.18223362]
[1723638575907,0.76600441,149.27,149.09,6.95999255]
[1723638576203,0.12549,149.25,149.09,6.95999255]
[1723638576707,0.12549,149.26,149.09,14.72837451]
[1723638576915,0.12549,149.26,149.09,15.1479668]
[1723638577092,0.12549,149.26,149.1,7.76838196]
[1723638577294,0.12549,149.25,149.1,7.76838196]
[1723638577488,0.12549,149.26,149.1,7.76838196]
[1723638577688,0.8445855,149.28,149.09,6.95999255]
[1723638577888,0.12549,149.27,149.09,5.94731555]
[1723638578089,6.7003,149.25,149.09,5.94731555]
[1723638578321,6.82499,149.27,149.09,5.94731555]
[1723638578612,0.12549,149.27,149.09,5.94731555]
[1723638578825,0.12549,149.25,149.09,5.94731555]
[1723638579117,0.12549,149.23,149.1,20.0]
[1723638579325,6.95446738,149.26,149.12,20.0]
[1723638579608,6.6963,149.34,149.13,28.08526085]
[1723638579821,6.6968,149.33,149.13,41.65576347]
[1723638580219,26.929866,149.41,149.16,20.0]
[1723638580423,26.929866,149.41,149.17,73.46173085]
[1723638580722,26.929866,149.41,149.17,65.25098]
[1723638580723,20.0,149.35,149.17,65.25098]
[1723638580927,6.6968,149.33,149.17,65.25098]
[1723638581097,20.0,149.39,149.17,74.00519529]
[1723638581292,20.0,149.37,149.17,74.00519529]
[1723638582018,20.0,149.4,149.19,0.12549]
[1723638582316,6.6971,149.32,149.19,45.37647]
[1723638582517,20.0,149.36,149.18,0.12549]
[1723638582687,20.0,149.36,149.18,0.37647]
[1723638582889,20.0,149.38,149.18,0.37647]
[1723638583117,6.6967,149.33,149.19,0.12549]
[1723638583322,20.0,149.4,149.19,0.12549]
[1723638583495,20.0,149.38,149.2,0.12549]
[1723638583817,6.6957,149.35,149.2,65.37647]
[1723638583992,6.6957,149.35,149.21,0.12549]
[1723638584320,6.6951,149.37,149.22,0.12549]
[1723638584619,6.6956,149.36,149.21,0.12549]
[1723638584821,6.6958,149.35,149.21,0.12549]
[1723638584987,6.6966,149.33,149.2,20.12549]
[1723638585191,20.0,149.36,149.21,20.0]
[1723638585406,20.0,149.38,149.21,20.0]
[1723638586024,6.695,149.37,149.2,0.12549]
[1723638586401,6.6942,149.39,149.2,0.12549]
[1723638586600,6.929866,149.41,149.2,0.37647]
[1723638586814,6.6944,149.38,149.21,0.12549]
[1723638587022,6.929866,149.41,149.22,0.12549]
[1723638587211,6.6952,149.36,149.22,0.37647]
[1723638587415,6.697,149.32,149.21,20.0]
[1723638587618,20.0,149.35,149.11,40.0]
[1723638587797,6.6974,149.32,149.12,8.75421529]
[1723638587998,6.6966,149.33,149.12,8.75421529]
[1723638588220,20.0,149.39,149.13,20.0]
[1723638588428,6.6957,149.35,149.14,28.75421529]
[1723638588724,6.6948,149.37,149.15,26.25403943]
[1723638588927,26.929866,149.41,149.17,20.0]
[1723638589221,20.0,149.37,149.18,20.0]
[1723638589520,20.0,149.37,149.11,20.0]
[1723638589521,20.0,149.37,149.13,20.0]
[1723638589722,20.0,149.37,149.13,40.0]
[1723638589927,6.6955,149.36,149.13,40.0]
[1723638590229,20.0,149.39,149.15,20.0]
[1723638590402,26.929866,149.41,149.16,45.50196]
[1723638590603,26.929866,149.41,149.16,46.84167515]
[1723638591106,6.6953,149.36,149.18,0.12549]
[1723638591321,6.6953,149.36,149.18,45.50196]
[1723638591623,6.6953,149.36,149.2,0.12549]
[1723638591799,6.6953,149.36,149.2,45.25098]
[1723638592000,6.6953,149.36,149.22,0.12549]
[1723638592199,20.0,149.39,149.22,45.12549]
[1723638592396,6.6942,149.39,149.24,0.12549]
[1723638592625,6.6942,149.39,149.24,45.12549]
[1723638592831,6.6942,149.39,149.25,0.12549]
[1723638593126,6.6944,149.38,149.25,0.12549]
[1723638593333,6.929866,149.41,149.26,0.12549]
[1723638593622,20.8445855,149.43,149.26,0.12549]
[1723638593826,6.6937,149.4,149.26,0.12549]
[1723638594025,20.8445855,149.43,149.26,45.12549]
[1723638594228,20.8445855,149.43,149.27,0.12549]